[Event "MČR juniorů a juniorek v rapid šachu 2024"]
[Site "Hotel Fit Fun, Harrachov, Czech Republic"]
[Date "2024.09.21"]
[Round "1.3"]
[White "Steinbauer Sebastian"]
[Black "Stara Zuzana"]
[Result "1-0"]
[TimeControl "20+5"]
[WhiteFideId "399272"]
[BlackFideId "23733543"]
[WhiteElo "2062"]
[BlackElo "1796"]

1. e4 {[%clk 00:20:08]} {[%emt 00:00:02]} c6 {[%clk 00:20:09]} {[%emt
00:00:02]} 2. d4 {[%clk 00:20:09]} {[%emt 00:00:04]} d5 {[%clk 00:20:13]}
{[%emt 00:00:01]} 3. exd5 {[%clk 00:20:02]} {[%emt 00:00:12]} cxd5 {[%clk
00:20:16]} {[%emt 00:00:01]} 4. c3 {[%clk 00:19:48]} {[%emt 00:00:19]} Bf5
{[%clk 00:20:05]} {[%emt 00:00:16]} 5. Nf3 {[%clk 00:19:46]} {[%emt 00:00:08]}
Nc6 {[%clk 00:20:04]} {[%emt 00:00:06]} 6. Bb5 {[%clk 00:19:35]} {[%emt
00:00:16]} a6 {[%clk 00:19:40]} {[%emt 00:00:29]} 7. Bxc6+ {[%clk 00:19:19]}
{[%emt 00:00:20]} bxc6 {[%clk 00:19:44]} {[%emt 00:00:02]} 8. Qa4 {[%clk
00:19:08]} {[%emt 00:00:15]} Qb6 {[%clk 00:18:43]} {[%emt 00:01:06]} 9. O-O
{[%clk 00:18:37]} {[%emt 00:00:36]} e6 {[%clk 00:18:44]} {[%emt 00:00:05]} 10.
Re1 {[%clk 00:17:40]} {[%emt 00:01:02]} Bd6 {[%clk 00:18:30]} {[%emt 00:00:20]}
11. Ne5 {[%clk 00:17:39]} {[%emt 00:00:05]} Bxe5 {[%clk 00:16:50]} {[%emt
00:01:46]} 12. Rxe5 {[%clk 00:17:14]} {[%emt 00:00:30]} Ne7 {[%clk 00:16:13]}
{[%emt 00:00:42]} 13. Nd2 {[%clk 00:17:13]} {[%emt 00:00:06]} O-O {[%clk
00:15:48]} {[%emt 00:00:29]} 14. Nb3 {[%clk 00:17:16]} {[%emt 00:00:02]} Ng6
{[%clk 00:12:35]} {[%emt 00:03:19]} 15. Re1 {[%clk 00:17:11]} {[%emt 00:00:10]}
Qc7 {[%clk 00:12:27]} {[%emt 00:00:11]} 16. Nc5 {[%clk 00:16:38]} {[%emt
00:00:39]} Rfe8 {[%clk 00:10:37]} {[%emt 00:01:55]} 17. Qd1 {[%clk 00:15:43]}
{[%emt 00:01:00]} e5 {[%clk 00:10:11]} {[%emt 00:00:32]} 18. dxe5 {[%clk
00:15:22]} {[%emt 00:00:26]} Rxe5 {[%clk 00:10:09]} {[%emt 00:00:06]} 19. Be3
{[%clk 00:15:22]} {[%emt 00:00:06]} Qe7 {[%clk 00:08:55]} {[%emt 00:01:18]} 20.
Qd2 {[%clk 00:14:45]} {[%emt 00:00:43]} Re8 {[%clk 00:08:22]} {[%emt 00:00:38]}
21. Nxa6 {[%clk 00:11:43]} {[%emt 00:03:07]} Nf4 {[%clk 00:06:08]} {[%emt
00:02:18]} 22. Nb4 {[%clk 00:10:05]} {[%emt 00:01:44]} Bd7 {[%clk 00:04:25]}
{[%emt 00:01:48]} 23. Nd3 {[%clk 00:09:41]} {[%emt 00:00:29]} Nxd3 {[%clk
00:04:17]} {[%emt 00:00:13]} 24. Qxd3 {[%clk 00:09:45]} {[%emt 00:00:01]} Bf5
{[%clk 00:02:18]} {[%emt 00:02:04]} 25. Qf1 {[%clk 00:08:57]} {[%emt 00:00:52]}
Bg6 {[%clk 00:01:48]} {[%emt 00:00:35]} 26. Bd2 {[%clk 00:08:13]} {[%emt
00:00:50]} Rxe1 {[%clk 00:00:59]} {[%emt 00:00:54]} 27. Rxe1 {[%clk 00:08:16]}
{[%emt 00:00:01]} Qd7 {[%clk 00:01:03]} {[%emt 00:00:02]} 28. Rxe8+ {[%clk
00:08:11]} {[%emt 00:00:09]} Qxe8 {[%clk 00:01:07]} {[%emt 00:00:01]} 29. Qe1
{[%clk 00:08:08]} {[%emt 00:00:09]} Qxe1+ {[%clk 00:01:03]} {[%emt 00:00:08]}
30. Bxe1 {[%clk 00:08:12]} {[%emt 00:00:02]} Kf8 {[%clk 00:01:06]} {[%emt
00:00:02]} 31. Bd2 {[%clk 00:08:15]} {[%emt 00:00:03]} Ke7 {[%clk 00:01:04]}
{[%emt 00:00:07]} 32. Be3 {[%clk 00:08:16]} {[%emt 00:00:04]} Kd6 {[%clk
00:00:58]} {[%emt 00:00:09]} 33. b4 {[%clk 00:08:19]} {[%emt 00:00:03]} Bd3
{[%clk 00:01:00]} {[%emt 00:00:03]} 34. a4 {[%clk 00:08:20]} {[%emt 00:00:05]}
Bc2 {[%clk 00:00:50]} {[%emt 00:00:15]} 35. a5 {[%clk 00:08:22]} {[%emt
00:00:03]} Bd3 {[%clk 00:00:53]} {[%emt 00:00:01]} 36. Bd4 {[%clk 00:08:23]}
{[%emt 00:00:05]} g6 {[%clk 00:00:54]} {[%emt 00:00:05]} 37. f3 {[%clk
00:08:21]} {[%emt 00:00:06]} Bb5 {[%clk 00:00:26]} {[%emt 00:00:32]} 38. Kf2
{[%clk 00:08:24]} {[%emt 00:00:02]} Ke6 {[%clk 00:00:29]} {[%emt 00:00:03]} 39.
Kg3 {[%clk 00:08:22]} {[%emt 00:00:07]} Kf5 {[%clk 00:00:23]} {[%emt 00:00:10]}
40. Kf2 {[%clk 00:07:46]} {[%emt 00:00:40]} Ke6 {[%clk 00:00:10]} {[%emt
00:00:20]} 41. Ke3 {[%clk 00:07:49]} {[%emt 00:00:02]} f6 {[%clk 00:00:09]}
{[%emt 00:00:06]} 42. Ba7 {[%clk 00:07:11]} {[%emt 00:00:42]} Bc4 {[%clk
00:00:13]} {[%emt 00:00:02]} 43. Bb8 {[%clk 00:07:13]} {[%emt 00:00:02]} Bb5
{[%clk 00:00:17]} 44. Kd4 {[%clk 00:06:57]} {[%emt 00:00:21]} Kd7 {[%clk
00:00:17]} {[%emt 00:00:06]} 45. Kc5 {[%clk 00:06:58]} {[%emt 00:00:03]} Kc8
{[%clk 00:00:10]} {[%emt 00:00:12]} 46. Bd6 {[%clk 00:06:07]} {[%emt 00:00:57]}
Kd7 {[%clk 00:00:14]} 47. Bg3 {[%clk 00:06:09]} {[%emt 00:00:02]} f5 {[%clk
00:00:06]} {[%emt 00:00:15]} 48. Kb6 {[%clk 00:06:10]} {[%emt 00:00:03]} g5
{[%clk 00:00:08]} {[%emt 00:00:03]} 49. a6 {[%clk 00:06:02]} {[%emt 00:00:13]}
1-0



[ePGN "0.1;DGT LiveChess/2.2.6"]

[Event "MČR juniorů a juniorek v rapid šachu 2024"]
[Site "Hotel Fit Fun, Harrachov, Czech Republic"]
[Date "2024.09.21"]
[Round "1.30"]
[White "Musil Tomas"]
[Black "Martinkovic Adam"]
[Result "1/2-1/2"]
[TimeControl "20+5"]
[WhiteFideId "23762888"]
[BlackFideId "23728019"]
[WhiteElo "1519"]
[BlackElo "1841"]

1. e4 {[%clk 00:16:28]} {[%emt 00:03:41]} c6 {[%clk 00:20:09]} {[%emt
00:00:01]} 2. Nf3 {[%clk 00:16:31]} {[%emt 00:00:03]} d5 {[%clk 00:20:12]}
{[%emt 00:00:01]} 3. e5 {[%clk 00:16:32]} {[%emt 00:00:04]} Bf5 {[%clk
00:20:09]} {[%emt 00:00:08]} 4. d4 {[%clk 00:16:35]} {[%emt 00:00:03]} e6
{[%clk 00:20:07]} {[%emt 00:00:07]} 5. Nc3 {[%clk 00:16:25]} {[%emt 00:00:14]}
c5 {[%clk 00:19:30]} {[%emt 00:00:42]} 6. Be3 {[%clk 00:16:28]} {[%emt
00:00:03]} Nd7 {[%clk 00:18:31]} {[%emt 00:01:04]} 7. Bd3 {[%clk 00:16:01]}
{[%emt 00:00:31]} Bxd3 {[%clk 00:18:04]} {[%emt 00:00:31]} 8. Qxd3 {[%clk
00:16:05]} {[%emt 00:00:02]} Qb6 {[%clk 00:16:30]} {[%emt 00:01:40]} 9. Qb5
{[%clk 00:15:15]} {[%emt 00:00:54]} a6 {[%clk 00:14:44]} {[%emt 00:01:52]} 10.
Qxb6 {[%clk 00:14:21]} {[%emt 00:00:59]} Nxb6 {[%clk 00:14:47]} {[%emt
00:00:02]} 11. dxc5 {[%clk 00:13:58]} {[%emt 00:00:27]} Nd7 {[%clk 00:14:26]}
{[%emt 00:00:26]} 12. Na4 {[%clk 00:12:28]} {[%emt 00:01:35]} Rc8 {[%clk
00:13:19]} {[%emt 00:01:12]} 13. b4 {[%clk 00:12:16]} {[%emt 00:00:18]} Ne7
{[%clk 00:13:02]} {[%emt 00:00:21]} 14. O-O {[%clk 00:11:37]} {[%emt 00:00:43]}
Nc6 {[%clk 00:12:27]} {[%emt 00:00:40]} 15. c3 {[%clk 00:10:40]} {[%emt
00:01:03]} Ncxe5 {[%clk 00:11:56]} {[%emt 00:00:36]} 16. Nxe5 {[%clk 00:10:08]}
{[%emt 00:00:36]} Nxe5 {[%clk 00:11:58]} {[%emt 00:00:03]} 17. Nb6 {[%clk
00:09:49]} {[%emt 00:00:25]} Rc6 {[%clk 00:11:33]} {[%emt 00:00:31]} 18. Rfd1
{[%clk 00:09:07]} {[%emt 00:00:46]} Be7 {[%clk 00:10:06]} {[%emt 00:01:32]} 19.
Bd4 {[%clk 00:08:53]} {[%emt 00:00:19]} Bf6 {[%clk 00:09:37]} {[%emt 00:00:34]}
20. f4 {[%clk 00:08:31]} {[%emt 00:00:27]} Ng4 {[%clk 00:08:42]} {[%emt
00:01:00]} 21. h3 {[%clk 00:06:59]} {[%emt 00:01:37]} Bxd4+ {[%clk 00:08:12]}
{[%emt 00:00:35]} 22. cxd4 {[%clk 00:06:36]} {[%emt 00:00:28]} Nf6 {[%clk
00:07:28]} {[%emt 00:00:49]} 23. Kf2 {[%clk 00:05:37]} {[%emt 00:01:04]} Nd7
{[%clk 00:06:17]} {[%emt 00:01:17]} 24. Nxd7 {[%clk 00:05:07]} {[%emt
00:00:34]} Kxd7 {[%clk 00:06:10]} {[%emt 00:00:12]} 25. a4 {[%clk 00:04:50]}
{[%emt 00:00:23]} Rcc8 {[%clk 00:05:34]} {[%emt 00:00:40]} 26. b5 {[%clk
00:04:37]} {[%emt 00:00:18]} axb5 {[%clk 00:05:17]} {[%emt 00:00:23]} 27. axb5
{[%clk 00:04:39]} {[%emt 00:00:03]} Ra8 {[%clk 00:05:20]} {[%emt 00:00:01]} 28.
b6 {[%clk 00:03:04]} {[%emt 00:01:40]} Kc6 {[%clk 00:04:22]} {[%emt 00:01:03]}
29. Ke3 {[%clk 00:02:39]} {[%emt 00:00:30]} h6 {[%clk 00:03:50]} {[%emt
00:00:37]} 30. g4 {[%clk 00:02:40]} {[%emt 00:00:04]} f6 {[%clk 00:03:18]}
{[%emt 00:00:37]} 31. f5 {[%clk 00:02:09]} {[%emt 00:00:36]} e5 {[%clk
00:03:06]} {[%emt 00:00:18]} 32. Ra7 {[%clk 00:01:45]} {[%emt 00:00:29]} Rxa7
{[%clk 00:02:26]} {[%emt 00:00:45]} 33. bxa7 {[%clk 00:01:48]} {[%emt
00:00:02]} Ra8 {[%clk 00:02:05]} {[%emt 00:00:26]} 34. Ra1 {[%clk 00:01:52]}
Kc7 {[%clk 00:00:47]} {[%emt 00:01:22]} 1/2-1/2



[ePGN "0.1;DGT LiveChess/2.2.6"]

[Event "MČR juniorů a juniorek v rapid šachu 2024"]
[Site "Hotel Fit Fun, Harrachov, Czech Republic"]
[Date "2024.09.21"]
[Round "1.31"]
[White "Urbansky Stepan"]
[Black "Kopecka Libuse"]
[Result "1-0"]
[TimeControl "20+5"]
[WhiteFideId "23761741"]
[BlackFideId "23748826"]
[WhiteElo "1837"]
[BlackElo "1496"]

1. e4 {[%clk 00:20:07]} {[%emt 00:00:01]} c5 {[%clk 00:20:09]} {[%emt
00:00:02]} 2. Nf3 {[%clk 00:20:08]} {[%emt 00:00:03]} Nc6 {[%clk 00:20:11]}
{[%emt 00:00:04]} 3. d4 {[%clk 00:20:07]} {[%emt 00:00:05]} cxd4 {[%clk
00:20:15]} {[%emt 00:00:02]} 4. Nxd4 {[%clk 00:20:09]} {[%emt 00:00:02]} d6
{[%clk 00:20:05]} {[%emt 00:00:16]} 5. Nc3 {[%clk 00:20:07]} {[%emt 00:00:05]}
g6 {[%clk 00:19:56]} {[%emt 00:00:15]} 6. Be3 {[%clk 00:19:54]} {[%emt
00:00:17]} Bg7 {[%clk 00:19:30]} {[%emt 00:00:33]} 7. Qd2 {[%clk 00:19:43]}
{[%emt 00:00:15]} Nf6 {[%clk 00:18:55]} {[%emt 00:00:40]} 8. f3 {[%clk
00:19:43]} {[%emt 00:00:05]} O-O {[%clk 00:18:27]} {[%emt 00:00:34]} 9. O-O-O
{[%clk 00:19:43]} {[%emt 00:00:05]} a5 {[%clk 00:17:17]} {[%emt 00:01:15]} 10.
g4 {[%clk 00:18:25]} {[%emt 00:01:22]} h6 {[%clk 00:15:42]} {[%emt 00:01:41]}
11. Nxc6 {[%clk 00:17:19]} {[%emt 00:01:11]} bxc6 {[%clk 00:15:06]} {[%emt
00:00:41]} 12. Bxh6 {[%clk 00:17:20]} {[%emt 00:00:04]} a4 {[%clk 00:13:32]}
{[%emt 00:01:40]} 13. h4 {[%clk 00:15:27]} {[%emt 00:01:57]} c5 {[%clk
00:11:07]} {[%emt 00:02:30]} 14. h5 {[%clk 00:15:04]} {[%emt 00:00:27]} gxh5
{[%clk 00:04:40]} {[%emt 00:06:33]} 15. gxh5 {[%clk 00:14:22]} {[%emt
00:00:47]} a3 {[%clk 00:02:41]} {[%emt 00:02:04]} 16. b3 {[%clk 00:14:15]}
{[%emt 00:00:11]} Qd7 {[%clk 00:01:25]} {[%emt 00:01:22]} 17. Qg5 {[%clk
00:14:06]} {[%emt 00:00:14]} Ne8 {[%clk 00:00:07]} {[%emt 00:01:24]} 18. Bxg7
{[%clk 00:14:05]} {[%emt 00:00:04]} Nxg7 {[%clk 00:00:08]} {[%emt 00:00:04]} 19.
h6 {[%clk 00:14:03]} {[%emt 00:00:08]} 1-0



[ePGN "0.1;DGT LiveChess/2.2.6"]

[Event "MČR juniorů a juniorek v rapid šachu 2024"]
[Site "Hotel Fit Fun, Harrachov, Czech Republic"]
[Date "2024.09.21"]
[Round "1.32"]
[White "Zadrapova Gabriela"]
[Black "Rybacek Martin"]
[Result "0-1"]
[TimeControl "20+5"]
[WhiteFideId "23753056"]
[BlackFideId "23739266"]
[WhiteElo "1456"]
[BlackElo "1831"]

1. e4 {[%clk 00:20:08]} {[%emt 00:00:01]} c6 {[%clk 00:20:01]} {[%emt
00:00:10]} 2. d4 {[%clk 00:20:12]} {[%emt 00:00:01]} d5 {[%clk 00:20:04]}
{[%emt 00:00:02]} 3. Nc3 {[%clk 00:19:59]} {[%emt 00:00:17]} dxe4 {[%clk
00:20:05]} {[%emt 00:00:05]} 4. Nxe4 {[%clk 00:20:03]} Bf5 {[%clk 00:20:08]}
{[%emt 00:00:02]} 5. Bd3 {[%clk 00:20:01]} {[%emt 00:00:06]} Qxd4 {[%clk
00:18:28]} {[%emt 00:01:46]} 6. Nf3 {[%clk 00:18:02]} {[%emt 00:02:04]} Qd8
{[%clk 00:16:49]} {[%emt 00:01:44]} 7. O-O {[%clk 00:17:48]} {[%emt 00:00:19]}
e6 {[%clk 00:15:53]} {[%emt 00:01:01]} 8. b3 {[%clk 00:17:00]} {[%emt
00:00:52]} Nf6 {[%clk 00:14:22]} {[%emt 00:01:36]} 9. Nfd2 {[%clk 00:15:10]}
{[%emt 00:01:56]} Qd4 {[%clk 00:12:37]} {[%emt 00:01:49]} 10. Nxf6+ {[%clk
00:12:31]} {[%emt 00:02:44]} Qxf6 {[%clk 00:12:38]} {[%emt 00:00:04]} 11. Rb1
{[%clk 00:12:20]} {[%emt 00:00:17]} Bxd3 {[%clk 00:12:35]} {[%emt 00:00:08]} 12.
cxd3 {[%clk 00:12:22]} {[%emt 00:00:02]} Be7 {[%clk 00:11:14]} {[%emt
00:01:26]} 13. Bb2 {[%clk 00:11:44]} {[%emt 00:00:44]} Qg6 {[%clk 00:11:18]}
{[%emt 00:00:01]} 14. Nf3 {[%clk 00:10:51]} {[%emt 00:00:58]} Nd7 {[%clk
00:11:08]} {[%emt 00:00:14]} 15. Re1 {[%clk 00:08:17]} {[%emt 00:02:39]} O-O
{[%clk 00:10:55]} {[%emt 00:00:19]} 16. Rc1 {[%clk 00:08:19]} {[%emt 00:00:02]}
Rfd8 {[%clk 00:10:28]} {[%emt 00:00:32]} 17. Re3 {[%clk 00:06:57]} {[%emt
00:01:28]} Bf6 {[%clk 00:07:32]} {[%emt 00:03:01]} 18. Bxf6 {[%clk 00:05:08]}
{[%emt 00:01:53]} Nxf6 {[%clk 00:07:04]} {[%emt 00:00:34]} 19. Ne5 {[%clk
00:03:11]} {[%emt 00:02:02]} Qh5 {[%clk 00:06:02]} {[%emt 00:01:07]} 20. Qxh5
{[%clk 00:02:01]} {[%emt 00:01:15]} Nxh5 {[%clk 00:06:05]} {[%emt 00:00:01]} 21.
Rc4 {[%clk 00:01:49]} {[%emt 00:00:18]} Rd5 {[%clk 00:05:16]} {[%emt 00:00:49]}
22. Rb4 {[%clk 00:01:26]} {[%emt 00:00:28]} Rb5 {[%clk 00:03:29]} {[%emt
00:01:57]} 23. Ree4 {[%clk 00:01:26]} {[%emt 00:00:05]} Rxb4 {[%clk 00:02:53]}
{[%emt 00:00:41]} 24. Rxb4 {[%clk 00:01:30]} f6 {[%clk 00:02:55]} {[%emt
00:00:03]} 25. Nc4 {[%clk 00:00:37]} {[%emt 00:00:58]} b6 {[%clk 00:01:49]}
{[%emt 00:01:11]} 26. Ne3 {[%clk 00:00:18]} {[%emt 00:00:24]} g6 {[%clk
00:01:43]} {[%emt 00:00:11]} 27. g4 {[%clk 00:00:11]} {[%emt 00:00:11]} Ng7
{[%clk 00:01:47]} 28. f4 {[%clk 00:00:14]} {[%emt 00:00:02]} Rd8 {[%clk
00:01:50]} {[%emt 00:00:02]} 29. d4 {[%clk 00:00:15]} {[%emt 00:00:04]} Kf7
{[%clk 00:01:35]} {[%emt 00:00:20]} 30. Kf2 {[%clk 00:00:17]} {[%emt 00:00:03]}
h5 {[%clk 00:01:38]} {[%emt 00:00:03]} 31. h3 {[%clk 00:00:17]} {[%emt
00:00:05]} hxg4 {[%clk 00:01:25]} {[%emt 00:00:18]} 32. hxg4 {[%clk 00:00:21]}
{[%emt 00:00:01]} Rh8 {[%clk 00:01:28]} 33. Kf3 {[%clk 00:00:18]} {[%emt
00:00:08]} Rh3+ {[%clk 00:01:12]} {[%emt 00:00:22]} 34. Ke2 {[%clk 00:00:22]}
{[%emt 00:00:01]} Rh2+ {[%clk 00:01:15]} {[%emt 00:00:03]} 35. Kd3 {[%clk
00:00:25]} {[%emt 00:00:01]} Rxa2 {[%clk 00:01:16]} {[%emt 00:00:04]} 36. Rc4
{[%clk 00:00:29]} Rb2 {[%clk 00:00:40]} {[%emt 00:00:41]} 37. Kc3 {[%clk
00:00:19]} {[%emt 00:00:15]} Re2 {[%clk 00:00:42]} {[%emt 00:00:03]} 38. Nc2
{[%clk 00:00:18]} {[%emt 00:00:05]} Rf2 {[%clk 00:00:37]} {[%emt 00:00:10]} 39.
Rxc6 {[%clk 00:00:21]} {[%emt 00:00:02]} Rxf4 {[%clk 00:00:38]} {[%emt
00:00:05]} 40. Rc7+ {[%clk 00:00:25]} {[%emt 00:00:02]} Kg8 {[%clk 00:00:41]}
{[%emt 00:00:01]} 41. Rxa7 {[%clk 00:00:27]} {[%emt 00:00:03]} Rxg4 {[%clk
00:00:41]} {[%emt 00:00:04]} 42. Ra6 {[%clk 00:00:29]} {[%emt 00:00:03]} Rf4
{[%clk 00:00:28]} {[%emt 00:00:18]} 43. Rxb6 {[%clk 00:00:29]} {[%emt
00:00:06]} g5 {[%clk 00:00:32]} 44. Kd3 {[%clk 00:00:15]} {[%emt 00:00:19]} g4
{[%clk 00:00:36]} {[%emt 00:00:02]} 45. Ra6 {[%clk 00:00:18]} {[%emt 00:00:02]}
g3 {[%clk 00:00:37]} {[%emt 00:00:03]} 46. Ra1 {[%clk 00:00:22]} {[%emt
00:00:01]} Rf3+ {[%clk 00:00:37]} {[%emt 00:00:06]} 47. Ke2 {[%clk 00:00:25]}
{[%emt 00:00:02]} Rxb3 {[%clk 00:00:40]} {[%emt 00:00:01]} 48. Rg1 {[%clk
00:00:29]} Nf5 {[%clk 00:00:43]} {[%emt 00:00:02]} 0-1



[ePGN "0.1;DGT LiveChess/2.2.6"]

[Event "MČR juniorů a juniorek v rapid šachu 2024"]
[Site "Hotel Fit Fun, Harrachov, Czech Republic"]
[Date "2024.09.21"]
[Round "1.33"]
[White "Dobsa Emma"]
[Black "Martinkovicova Nela"]
[Result "1-0"]
[TimeControl "20+5"]
[WhiteFideId "23709391"]
[BlackFideId "23715596"]
[WhiteElo "1830"]
[BlackElo "1446"]

1. e4 {[%clk 00:20:07]} {[%emt 00:00:02]} e5 {[%clk 00:20:08]} {[%emt
00:00:03]} 2. Nf3 {[%clk 00:20:11]} {[%emt 00:00:01]} Nf6 {[%clk 00:20:11]}
{[%emt 00:00:02]} 3. Nxe5 {[%clk 00:20:13]} {[%emt 00:00:02]} d6 {[%clk
00:20:15]} {[%emt 00:00:02]} 4. Nf3 {[%clk 00:20:17]} {[%emt 00:00:01]} Nxe4
{[%clk 00:20:15]} {[%emt 00:00:04]} 5. d4 {[%clk 00:20:21]} {[%emt 00:00:01]}
d5 {[%clk 00:20:18]} {[%emt 00:00:03]} 6. Bd3 {[%clk 00:20:24]} {[%emt
00:00:01]} Bg4 {[%clk 00:20:01]} {[%emt 00:00:22]} 7. h3 {[%clk 00:20:08]}
{[%emt 00:00:21]} Bh5 {[%clk 00:19:48]} {[%emt 00:00:18]} 8. O-O {[%clk
00:19:40]} {[%emt 00:00:33]} Bd6 {[%clk 00:19:09]} {[%emt 00:00:44]} 9. c4
{[%clk 00:19:25]} {[%emt 00:00:21]} c6 {[%clk 00:18:44]} {[%emt 00:00:30]} 10.
Re1 {[%clk 00:18:46]} {[%emt 00:00:42]} O-O {[%clk 00:17:34]} {[%emt 00:01:15]}
11. Bxe4 dxe4 {[%clk 00:17:28]} 12. Rxe4 {[%clk 00:18:37]} {[%emt 00:00:03]}
Nd7 {[%clk 00:16:44]} {[%emt 00:00:50]} 13. Nc3 {[%clk 00:17:39]} {[%emt
00:01:03]} Nf6 {[%clk 00:16:37]} {[%emt 00:00:12]} 14. Re1 {[%clk 00:17:42]}
{[%emt 00:00:02]} Qc7 {[%clk 00:16:02]} {[%emt 00:00:40]} 15. Bg5 {[%clk
00:16:41]} {[%emt 00:01:07]} Nd7 {[%clk 00:15:19]} {[%emt 00:00:47]} 16. Ne4
{[%clk 00:14:54]} {[%emt 00:01:52]} Bh2+ {[%clk 00:14:35]} {[%emt 00:00:49]} 17.
Kh1 {[%clk 00:14:57]} {[%emt 00:00:01]} Bd6 {[%clk 00:14:00]} {[%emt 00:00:41]}
18. Nxd6 {[%clk 00:14:45]} {[%emt 00:00:17]} Qxd6 {[%clk 00:14:02]} {[%emt
00:00:02]} 19. Be7 {[%clk 00:14:47]} {[%emt 00:00:04]} Qc7 {[%clk 00:13:42]}
{[%emt 00:00:25]} 20. Bxf8 {[%clk 00:14:32]} {[%emt 00:00:20]} Rxf8 {[%clk
00:13:44]} {[%emt 00:00:02]} 21. Qd3 {[%clk 00:14:21]} {[%emt 00:00:17]} f5
{[%clk 00:13:18]} {[%emt 00:00:31]} 22. Re7 {[%clk 00:13:55]} {[%emt 00:00:29]}
Qd8 {[%clk 00:12:54]} {[%emt 00:00:30]} 23. Re2 {[%clk 00:12:57]} {[%emt
00:01:02]} g5 {[%clk 00:12:37]} {[%emt 00:00:23]} 24. Rc2 {[%clk 00:11:47]}
{[%emt 00:01:15]} g4 {[%clk 00:12:26]} {[%emt 00:00:16]} 25. Nh2 {[%clk
00:11:36]} {[%emt 00:00:16]} Ne5 {[%clk 00:11:58]} {[%emt 00:00:34]} 26. Qe3
{[%clk 00:10:41]} {[%emt 00:01:00]} Ng6 {[%clk 00:11:46]} {[%emt 00:00:16]} 27.
Re1 {[%clk 00:08:33]} {[%emt 00:02:13]} gxh3 {[%clk 00:10:42]} {[%emt
00:01:09]} 28. Qxh3 {[%clk 00:08:00]} {[%emt 00:00:38]} Nf4 {[%clk 00:09:57]}
{[%emt 00:00:50]} 29. Qg3+ {[%clk 00:07:51]} {[%emt 00:00:14]} Ng6 {[%clk
00:09:49]} {[%emt 00:00:13]} 30. Rd2 {[%clk 00:07:10]} {[%emt 00:00:46]} f4
{[%clk 00:09:19]} {[%emt 00:00:36]} 31. Qb3 {[%clk 00:05:02]} {[%emt 00:02:12]}
Qg5 {[%clk 00:07:49]} {[%emt 00:01:34]} 32. Nf3 {[%clk 00:02:18]} {[%emt
00:02:49]} Bxf3 {[%clk 00:07:25]} {[%emt 00:00:29]} 33. Qxf3 {[%clk 00:02:21]}
{[%emt 00:00:02]} Nh4 {[%clk 00:07:16]} {[%emt 00:00:15]} 34. Qh3 {[%clk
00:01:40]} {[%emt 00:00:46]} f3 {[%clk 00:06:58]} {[%emt 00:00:24]} 35. Rd3
{[%clk 00:01:14]} {[%emt 00:00:31]} fxg2+ {[%clk 00:06:48]} {[%emt 00:00:15]}
36. Kg1 {[%clk 00:01:14]} {[%emt 00:00:03]} Qf6 {[%clk 00:04:52]} {[%emt
00:02:02]} 37. Qe6+ {[%clk 00:01:02]} {[%emt 00:00:17]} Qxe6 {[%clk 00:04:49]}
{[%emt 00:00:08]} 38. Rxe6 {[%clk 00:01:06]} Rf7 {[%clk 00:04:37]} {[%emt
00:00:17]} 39. Rg3+ {[%clk 00:01:00]} {[%emt 00:00:12]} Kf8 {[%clk 00:04:22]}
{[%emt 00:00:19]} 40. Re4 {[%clk 00:00:54]} {[%emt 00:00:11]} Nf3+ {[%clk
00:03:59]} {[%emt 00:00:28]} 41. Kxg2 {[%clk 00:00:58]} {[%emt 00:00:02]} Nd2
{[%clk 00:03:53]} {[%emt 00:00:10]} 42. Ree3 {[%clk 00:00:55]} {[%emt
00:00:09]} Nxc4 {[%clk 00:03:32]} {[%emt 00:00:26]} 43. Ref3 {[%clk 00:00:48]}
{[%emt 00:00:12]} Rxf3 {[%clk 00:03:15]} {[%emt 00:00:21]} 44. Rxf3+ {[%clk
00:00:52]} {[%emt 00:00:01]} Ke7 {[%clk 00:03:17]} {[%emt 00:00:03]} 45. b3
{[%clk 00:00:55]} {[%emt 00:00:03]} Nd6 {[%clk 00:03:15]} {[%emt 00:00:07]} 46.
Rh3 {[%clk 00:00:58]} b5 {[%clk 00:03:04]} {[%emt 00:00:16]} 47. Rxh7+ {[%clk
00:01:02]} Ke6 {[%clk 00:03:08]} {[%emt 00:00:01]} 48. Rxa7 {[%clk 00:01:05]}
{[%emt 00:00:03]} Nf5 {[%clk 00:03:06]} {[%emt 00:00:07]} 49. Rh7 {[%clk
00:00:59]} {[%emt 00:00:11]} Nxd4 {[%clk 00:02:59]} {[%emt 00:00:12]} 50. Kg3
{[%clk 00:00:58]} {[%emt 00:00:04]} Kf5 {[%clk 00:02:54]} {[%emt 00:00:10]} 51.
Rh5+ {[%clk 00:00:58]} {[%emt 00:00:05]} Ke4 {[%clk 00:02:53]} {[%emt
00:00:07]} 52. Rh4+ {[%clk 00:00:58]} {[%emt 00:00:05]} Ke5 {[%clk 00:02:50]}
{[%emt 00:00:08]} 53. f4+ {[%clk 00:01:01]} {[%emt 00:00:02]} Ke6 {[%clk
00:02:44]} {[%emt 00:00:11]} 54. Rh5 {[%clk 00:01:01]} {[%emt 00:00:04]} Nf5+
{[%clk 00:02:45]} {[%emt 00:00:06]} 55. Kg4 {[%clk 00:01:04]} {[%emt 00:00:01]}
Ne3+ {[%clk 00:02:43]} {[%emt 00:00:08]} 56. Kg5 {[%clk 00:01:06]} {[%emt
00:00:01]} Nf5 {[%clk 00:02:43]} {[%emt 00:00:06]} 57. Rh2 {[%clk 00:01:05]}
{[%emt 00:00:05]} Ng7 {[%clk 00:02:40]} {[%emt 00:00:09]} 58. Re2+ {[%clk
00:01:08]} {[%emt 00:00:03]} Kf7 {[%clk 00:02:38]} {[%emt 00:00:06]} 59. f5
{[%clk 00:01:12]} Ne8 {[%clk 00:02:35]} {[%emt 00:00:08]} 60. Rc2 {[%clk
00:01:13]} {[%emt 00:00:04]} c5 {[%clk 00:02:23]} {[%emt 00:00:17]} 61. Rxc5
{[%clk 00:01:17]} {[%emt 00:00:02]} b4 {[%clk 00:02:27]} {[%emt 00:00:01]} 62.
Rb5 {[%clk 00:01:19]} {[%emt 00:00:02]} Nd6 {[%clk 00:02:22]} {[%emt 00:00:10]}
63. Rxb4 {[%clk 00:01:23]} {[%emt 00:00:02]} Ke7 {[%clk 00:02:10]} {[%emt
00:00:16]} 64. Rb6 {[%clk 00:01:25]} {[%emt 00:00:02]} Nf7+ {[%clk 00:02:06]}
{[%emt 00:00:10]} 65. Kg6 {[%clk 00:01:25]} {[%emt 00:00:02]} Ne5+ {[%clk
00:02:06]} {[%emt 00:00:08]} 66. Kg7 {[%clk 00:01:28]} {[%emt 00:00:02]} Nd7
{[%clk 00:01:59]} {[%emt 00:00:13]} 67. Rb7 {[%clk 00:01:32]} Ke8 {[%clk
00:02:01]} {[%emt 00:00:03]} 68. Rxd7 {[%clk 00:01:36]} {[%emt 00:00:01]} Kxd7
{[%clk 00:02:04]} {[%emt 00:00:01]} 69. f6 {[%clk 00:01:40]} 1-0



[ePGN "0.1;DGT LiveChess/2.2.6"]